fUST/lending_fUST_20240606
["ID","MTS","AMOUNT","RATE_DAILY","PERIOD"]
[328637687,1717650636003,-500.0,0.00019178,2]
[328637688,1717650636012,-500.0,0.00019178,2]
[328637689,1717650636021,-500.0,0.00019178,2]
[328637690,1717650636032,-500.0,0.00019178,2]
[328637691,1717650636042,-500.0,0.00019178,2]
[328637692,1717650636051,-500.0,0.00019178,2]
[328637693,1717650636060,-461.50056361,0.00019178,2]
[328637694,1717650636069,-500.0,0.00019178,2]
[328637695,1717650636078,-500.0,0.00019178,2]
[328637696,1717650636087,-500.0,0.00019178,2]
[328637697,1717650636096,-232.30454909,0.00019178,2]
[328637698,1717650636106,-500.0,0.00019178,2]
[328637699,1717650636115,-500.0,0.00019178,2]
[328637700,1717650636126,-361.21906042,0.00019178,2]
[328637701,1717650636135,-500.0,0.00019178,2]
[328637702,1717650636145,-500.0,0.00019178,2]
[328637703,1717650636155,-500.0,0.00019178,2]
[328637704,1717650636164,-500.0,0.00019178,2]
[328637705,1717650636173,-500.0,0.00019178,2]
[328637706,1717650636183,-500.0,0.00019178,2]
[328637707,1717650636193,-500.0,0.00019178,2]
[328637708,1717650636202,-500.0,0.00019178,2]
[328637709,1717650636211,-500.0,0.00019178,2]
[328637710,1717650636220,-500.0,0.00019178,2]
[328637711,1717650636229,-500.0,0.00019178,2]
[328637712,1717650636239,-500.0,0.00019178,2]
[328637713,1717650636248,-500.0,0.00019178,2]
[328637714,1717650636257,-500.0,0.00019178,2]
[328637715,1717650636268,-500.0,0.00019178,2]
[328637716,1717650636278,-500.0,0.00019178,2]
[328637717,1717650636287,-500.0,0.00019178,2]
[328637718,1717650636297,-500.0,0.00019178,2]
[328637719,1717650636307,-500.0,0.00019178,2]
[328637720,1717650636316,-443.56412943,0.00019178,2]
[328637721,1717650636325,-500.0,0.00019178,2]
[328637722,1717650636334,-557.04538697,0.00019178,2]
[328637723,1717650636344,-557.04538697,0.00019178,2]
[328637724,1717650636353,-312.49626839,0.00019178,2]
[328637725,1717650636362,-557.04538697,0.00019178,2]
[328637726,1717650636374,-557.04538697,0.00019178,2]
[328637727,1717650636383,-557.04538697,0.00019178,2]
[328637728,1717650636392,-557.04538697,0.00019178,2]
[328637729,1717650636401,-557.04538697,0.00019178,2]
[328637730,1717650636412,-557.04538697,0.00019178,2]
[328637731,1717650636421,-557.04538697,0.00019178,2]
[328637732,1717650636430,-557.04538697,0.00019178,2]
[328637733,1717650636439,-557.04538697,0.00019178,2]
[328637734,1717650636448,-557.04538697,0.00019178,2]
[328637735,1717650636458,-557.04538697,0.00019178,2]
[328637736,1717650636470,-557.04538697,0.00019178,2]
[328637737,1717650636480,-557.04538697,0.00019178,2]
[328637738,1717650636490,-557.04538697,0.00019178,2]
[328637739,1717650636499,-557.04538697,0.00019178,2]
[328637740,1717650636510,-557.04538697,0.00019178,2]
[328637741,1717650636519,-557.04538697,0.00019178,2]
[328637742,1717650636529,-557.04538697,0.00019178,2]
[328637743,1717650636541,-557.04538697,0.00019178,2]
[328637744,1717650636550,-557.04538697,0.00019178,2]
[328637745,1717650636559,-557.04538697,0.00019178,2]
[328637746,1717650636571,-557.04538697,0.00019178,2]
[328637747,1717650636582,-557.04538697,0.00019178,2]
[328637748,1717650636592,-557.04538697,0.00019178,2]
[328637749,1717650636601,-557.04538697,0.00019178,2]
[328637750,1717650636611,-557.04538697,0.00019178,2]
[328637751,1717650636620,-557.04538697,0.00019178,2]
[328637752,1717650636629,-557.04538697,0.00019178,2]
[328637753,1717650636639,-557.04538697,0.00019178,2]
[328637754,1717650636650,-557.04538697,0.00019178,2]
[328637755,1717650636660,-557.04538697,0.00019178,2]
[328637756,1717650636670,-557.04538697,0.00019178,2]
[328637757,1717650636679,-557.04538697,0.00019178,2]
[328637758,1717650636688,-557.04538697,0.00019178,2]
[328637759,1717650636697,-557.04538697,0.00019178,2]
[328637760,1717650636707,-557.04538697,0.00019178,2]
[328637761,1717650636717,-557.04538697,0.00019178,2]
[328637762,1717650636726,-557.04538697,0.00019178,2]
[328637763,1717650636739,-557.04538697,0.00019178,2]
[328637764,1717650636753,-557.04538697,0.00019178,2]
[328637765,1717650636766,-557.04538697,0.00019178,2]
[328637766,1717650636779,-557.04538697,0.00019178,2]
[328637767,1717650636792,-557.04538697,0.00019178,2]
[328637768,1717650636803,-557.04538697,0.00019178,2]
[328637769,1717650636812,-557.04538697,0.00019178,2]
[328637770,1717650636825,-557.04538697,0.00019178,2]
[328637771,1717650636836,-557.04538697,0.00019178,2]
[328637772,1717650636848,-557.04538694,0.00019178,2]
[328637773,1717650636859,-557.04538693,0.00019178,2]
[328637774,1717650636872,-405.48536158,0.00019178,2]
[328637775,1717650636884,-374.06712603,0.00019178,2]
[328637776,1717650636897,-500.0,0.00019178,2]
[328637777,1717650636913,-393.85608357,0.00019178,2]
[328637778,1717650636929,-500.0,0.00019178,2]
[328637779,1717650636941,-176.23695135,0.00019178,2]
[328637780,1717650636953,-500.0,0.00019178,2]
[328637781,1717650636965,-500.0,0.00019178,2]
[328637782,1717650636978,-523.24634243,0.00019178,2]
[328637783,1717650636989,-500.0,0.00019178,2]
[328637784,1717650637001,-500.0,0.00019178,2]
[328637785,1717650637013,-500.0,0.00019178,2]
[328637786,1717650637026,-500.0,0.00019178,2]
[328637787,1717650637037,-500.0,0.00019178,2]
[328637788,1717650637048,-159.37024362,0.00019178,2]
[328637789,1717650637059,-500.0,0.00019178,2]
[328637790,1717650637069,-500.0,0.00019178,2]
[328637791,1717650637081,-366.70385719,0.00019178,2]
[328637792,1717650637092,-500.0,0.00019178,2]
[328637793,1717650637104,-286.02414298,0.00019178,2]
[328637794,1717650637116,-622.81473965,0.00019178,2]
[328637795,1717650637128,-500.0,0.00019178,2]
[328637796,1717650637140,-500.0,0.00019178,2]
[328637797,1717650637151,-500.0,0.00019178,2]
[328637798,1717650637164,-500.0,0.00019178,2]
[328637799,1717650637176,-437.55532937,0.00019178,2]
[328637800,1717650637189,-500.0,0.00019178,2]
[328637801,1717650637201,-500.86320293,0.00019178,2]
[328637802,1717650637212,-500.0,0.00019178,2]
[328637803,1717650637223,-231.73275387,0.00019178,2]
[328637804,1717650637233,-308.32039119,0.00019178,2]
[328637805,1717650637243,-500.0,0.00019178,2]
[328637806,1717650637254,-595.56579054,0.00019178,2]
[328637807,1717650637266,-535.4963436,0.00019178,2]
[328637808,1717650637278,-241.349259,0.00019178,2]
[328637809,1717650637290,-241.349259,0.00019178,2]
[328637810,1717650637302,-241.349259,0.00019178,2]
[328637811,1717650637312,-241.349263,0.00019178,2]
[328637812,1717650637324,-277.343655,0.00019178,2]
[328637813,1717650637335,-277.343655,0.00019178,2]
[328637814,1717650637346,-277.343655,0.00019178,2]
[328637815,1717650637359,-277.343655,0.00019178,2]
[328637816,1717650637370,-277.343655,0.00019178,2]
[328637817,1717650637381,-277.343655,0.00019178,2]
[328637818,1717650637392,-277.343655,0.00019178,2]
[328637819,1717650637403,-277.343659,0.00019178,2]
[328637820,1717650637415,-159.56685,0.00019178,2]
[328637821,1717650637426,-159.56685,0.00019178,2]
[328637822,1717650637437,-159.56685,0.00019178,2]
[328637823,1717650637447,-159.56685,0.00019178,2]
[328637824,1717650637459,-159.56685,0.00019178,2]
[328637825,1717650637472,-159.56685,0.00019178,2]
[328637826,1717650637483,-159.56685,0.00019178,2]
[328637827,1717650637493,-159.566841,0.00019178,2]
[328637828,1717650637504,-1739.641168,0.00019178,2]
[328637829,1717650637515,-1739.641168,0.00019178,2]
[328637830,1717650637526,-1739.641168,0.00019178,2]
[328637831,1717650637537,-1739.641165,0.00019178,2]
[328637832,1717650637549,-338.379674,0.00019178,2]
[328637833,1717650637560,-338.379674,0.00019178,2]
[328637834,1717650637571,-338.379674,0.00019178,2]
[328637835,1717650637582,-338.379668,0.00019178,2]
[328637836,1717650637593,-239.374143,0.00019178,2]
[328637837,1717650637604,-239.374143,0.00019178,2]
[328637838,1717650637615,-239.374143,0.00019178,2]
[328637839,1717650637627,-239.374143,0.00019178,2]
[328637840,1717650637639,-167.173391,0.00019178,2]
[328637841,1717650637650,-166.865504,0.00019178,2]
[328637842,1717650637662,-151.0,0.00019178,2]
[328637843,1717650637675,-151.0,0.00019178,2]
[328637844,1717650637686,-151.0,0.00019178,2]
[328637845,1717650637697,-285.926883,0.00019178,2]
[328637846,1717650637708,-292.6,0.00019452,3]
[328637847,1717650637719,-1516.73137671,0.00019466,2]
[328637848,1717650637730,-154.40712473,0.00019669,2]
[328637849,1717650637741,-151.0,0.00019684,3]
[328637850,1717650637752,-153.0,0.00019753,2]
[328637851,1717650637763,-588.6711588,0.00019753,2]
[328637852,1717650637774,-154.8752489,0.00019753,2]
[328637853,1717650637785,-153.0,0.00019753,2]
[328637854,1717650637796,-8430.17445428,0.0002,2]
[328637855,1717650637807,-471.94717193,0.0002,2]
[328637856,1717650637817,-931.59460188,0.0002,2]
[328637857,1717650637829,-1354.45712807,0.0002,2]
[328637858,1717650637841,-49121.01898013,0.0002,2]
[328637859,1717650637851,-6380.72788467,0.0002,2]
[328637860,1717650637862,-3094.61187064,0.0002,2]
[328637861,1717650637873,-20936.10629827,0.0002,2]
[328637862,1717650637884,-155.09572283,0.0002,2]
[328637863,1717650637895,-1461.13966641,0.0002,3]
[328637864,1717650637906,-270.0,0.0002,2]
[328637865,1717650637917,-683.31096126,0.00020037,2]
[328637866,1717650637928,-292.6,0.00020057,3]
[328637867,1717650638051,-151.0,0.00020228,3]
[328637868,1717650638065,-3000.0,0.00020547,2]
[328637869,1717650638075,-3000.0,0.00020547,2]
[328637870,1717650638085,-3000.0,0.00020547,2]
[328637871,1717650638095,-3000.0,0.00020547,2]
[328637872,1717650638104,-3000.0,0.00020547,2]
[328637873,1717650638114,-577.19417035,0.00020547,2]
[328637874,1717650638123,-1284.786474,0.00020548,2]
[328637875,1717650638133,-292.6,0.00020661,3]
[328637876,1717650638143,-151.0,0.00020773,5]
[328637877,1717650638153,-153.0,0.00020959,2]
[328637878,1717650638164,-8456.82456494,0.00021,2]
[328637879,1717650638173,-5249.58943799,0.00021,2]
[328637880,1717650638182,-393.74475304,0.00021,2]
[328637881,1717650638192,-623.16554806,0.00021039,2]
[328637882,1717650638201,-300.0,0.00021264,2]
[328637883,1717650638210,-292.6,0.00021266,5]
[328637884,1717650638219,-300.54025728,0.00021287,2]
[328637885,1717650638229,-1000.0,0.00021294,2]
[328637886,1717650638239,-1009.92552309,0.00021296,2]
[328637887,1717650638248,-1000.0,0.00021315,2]
[328637888,1717650638257,-151.0,0.00021317,5]
[328637889,1717650638267,-1516.73137671,0.00021325,2]
[328637890,1717650638276,-1000.0,0.00021331,2]
[328637891,1717650638286,-1000.0,0.00021347,2]
[328637892,1717650638296,-1000.0,0.00021352,2]
[328637893,1717650638306,-1000.0,0.00021378,2]
[328637894,1717650638315,-300.0,0.00021398,2]
[328637895,1717650638325,-1000.0,0.00021403,2]
[328637896,1717650638335,-300.0,0.00021437,2]
[328637897,1717650638345,-300.0,0.00021453,2]
[328637898,1717650638354,-1000.0,0.00021474,2]
[328637899,1717650638363,-1000.0,0.00021478,2]
[328637900,1717650638373,-156.21613984,0.00021479,2]
[328637902,1717650638383,-3000.0,0.000215,2]
[328637904,1717650638392,-3000.0,0.0002151,2]
[328637906,1717650638402,-3000.0,0.0002152,2]
[328637907,1717650638412,-3000.0,0.0002153,2]
[328637909,1717650638422,-3000.0,0.0002154,2]
[328637910,1717650638431,-3000.0,0.0002155,2]
[328637911,1717650638440,-435.0,0.00021558,2]
[328637912,1717650638449,-259.03229151,0.00021559,2]
[328637913,1717650638459,-3000.0,0.0002156,2]
[328637914,1717650638471,-10097.4701823,0.00021566,2]
[328637915,1717650638480,-162.96737404,0.00021568,2]
[328637916,1717650638490,-243.00343584,0.00021568,2]
[328637917,1717650638499,-210.41828461,0.00021569,2]
[328637918,1717650638510,-3000.0,0.0002157,2]
[328637919,1717650638519,-11659.31293699,0.0002158,2]
[328637920,1717650638528,-3000.0,0.0002158,2]
[328637921,1717650638541,-1261.98768488,0.00021586,2]
[328637922,1717650638550,-273.06389751,0.00021586,2]
[328637924,1717650638560,-836.47527539,0.00021586,2]
[328637926,1717650638570,-190.07154576,0.00021586,2]
[328637928,1717650638579,-583.35924801,0.00021586,2]
[328637929,1717650638588,-156.07313971,0.00021586,2]
[328637930,1717650638597,-154.95351395,0.00021586,2]
[328637931,1717650638606,-193.14979908,0.00021587,4]
[328637932,1717650638616,-3000.0,0.0002159,2]
[328637933,1717650638625,-3000.0,0.000216,2]
[328637934,1717650638634,-3000.0,0.0002161,2]
[328637935,1717650638644,-3000.0,0.0002162,2]
[328637936,1717650638653,-3000.0,0.0002163,2]
[328637937,1717650638664,-3000.0,0.0002164,2]
[328637938,1717650638674,-166.666666,0.00021644,2]
[328637939,1717650638684,-3000.0,0.0002165,2]
[328637940,1717650638693,-3000.0,0.0002166,2]
[328637941,1717650638702,-3000.0,0.0002167,2]
[328637942,1717650638712,-3000.0,0.0002168,2]
[328637943,1717650638722,-3000.0,0.0002169,2]
[328637944,1717650638731,-3000.0,0.000217,2]
[328637945,1717650638740,-3000.0,0.0002171,2]
[328637946,1717650638751,-3000.0,0.0002172,2]
[328637947,1717650638762,-3000.0,0.0002173,2]
[328637948,1717650638772,-3000.0,0.0002174,2]
[328637949,1717650638782,-3000.0,0.0002175,2]
[328637950,1717650638792,-3000.0,0.0002176,2]
[328637951,1717650638801,-3000.0,0.0002177,2]
[328637952,1717650638811,-3000.0,0.0002178,2]
[328637953,1717650638820,-3000.0,0.0002179,2]
[328637954,1717650638830,-3000.0,0.000218,2]
[328637955,1717650638840,-3000.0,0.0002181,2]
[328637956,1717650638850,-3000.0,0.0002182,2]
[328637957,1717650638859,-3000.0,0.0002183,2]
[328637958,1717650638868,-3000.0,0.0002184,2]
[328637959,1717650638878,-3000.0,0.0002185,2]
[328637960,1717650638887,-3000.0,0.0002186,2]
[328637961,1717650638896,-151.0,0.00021861,5]
[328637962,1717650638905,-3000.0,0.0002187,2]
[328637963,1717650638914,-292.6,0.00021871,5]
[328637964,1717650638923,-3000.0,0.0002188,2]
[328637965,1717650638932,-3000.0,0.0002189,2]
[328637966,1717650638942,-3000.0,0.000219,2]
[328637967,1717650638951,-541.0,0.000219,2]
[328637968,1717650638960,-541.0,0.000219,2]
[328637969,1717650638969,-3000.0,0.0002191,2]
[328637970,1717650638979,-166.666666,0.00021918,2]
[328637971,1717650638988,-3000.0,0.0002192,2]
[328637972,1717650638997,-3000.0,0.0002193,2]
[328637973,1717650639006,-3000.0,0.0002194,2]
[328637974,1717650639016,-3000.0,0.0002195,2]
[328637975,1717650639025,-3000.0,0.0002196,2]
[328637976,1717650639034,-3000.0,0.0002197,2]
[328637977,1717650639044,-3000.0,0.0002198,2]
[328637978,1717650639053,-3000.0,0.0002199,2]
[328637979,1717650639063,-301.48635,0.00022,2]
[328637980,1717650639073,-508.92,0.00022,7]
[328637981,1717650639083,-3000.0,0.00022,2]
[328637982,1717650639092,-4476.960664,0.0002201,2]
[328637983,1717650639101,-150.0,0.00022031,2]
[328637984,1717650639109,-620.1582774,0.00022091,2]
[328637985,1717650639118,-624.26526648,0.000221,2]
[328637986,1717650639128,-151.0,0.00022406,5]
[328637987,1717650639138,-166.666666,0.00022431,2]
[328637988,1717650639147,-292.6,0.00022476,5]
[328637989,1717650639157,-31875.24202889,0.000225,2]
[328637990,1717650639168,-600.0,0.00022704,2]
[328637991,1717650639178,-600.0,0.00022941,2]
[328637992,1717650639187,-166.666666,0.00022944,2]
[328637993,1717650639196,-151.0,0.0002295,5]
[328637994,1717650639206,-11316.53524807,0.00023,2]
[328637995,1717650639216,-7767.57452031,0.00023,2]
[328637996,1717650639227,-154.9690062,0.00023,2]
[328637997,1717650639237,-200.0,0.00023,2]
[328637998,1717650639247,-292.6,0.00023081,5]
[328637999,1717650639257,-600.0,0.00023177,2]
[328638000,1717650639266,-1516.73137671,0.00023183,2]
[328638001,1717650639276,-620.00791387,0.00023196,2]
[328638002,1717650639285,-200.0,0.00023288,2]
[328638003,1717650639295,-600.0,0.00023414,2]
[328638004,1717650639306,-166.666666,0.00023456,2]
[328638005,1717650639315,-2606.65119731,0.00023617,2]
[328638006,1717650639326,-600.0,0.0002365,2]
[328638007,1717650639336,-292.6,0.00023686,7]
[328638008,1717650639346,-1278.0,0.00023698,8]
[328638009,1717650639355,-160.0,0.00023713,3]
[328638010,1717650639364,-1743.73228982,0.00023804,2]
[328638011,1717650639374,-29411.14584344,0.0002382,2]
[328638012,1717650639383,-155.1024627,0.00023828,2]
[328638013,1717650639393,-155.06941392,0.00023829,2]
[328638014,1717650639403,-24710.68429945,0.0002383,2]
[328638015,1717650639414,-154.9690062,0.00023848,2]
[328638016,1717650639423,-247.7016531,0.00023848,2]
[328638017,1717650639433,-164.57500074,0.00023848,2]
[328638018,1717650639443,-155.88563632,0.00023848,2]
[328638019,1717650639453,-766.47122656,0.00023848,2]
[328638020,1717650639466,-154.98450155,0.00023848,2]
[328638021,1717650639475,-290.32204131,0.00023848,2]
[328638022,1717650639485,-395.43647152,0.00023848,2]
[328638023,1717650639494,-773.91751555,0.00023848,2]
[328638024,1717650639505,-189.80827247,0.00023848,2]
[328638025,1717650639515,-18168.67842446,0.0002385,2]
[328638026,1717650639649,-520.25624294,0.0002385,2]
[328638027,1717650639661,-826.65721377,0.0002385,2]
[328638028,1717650639772,-968.94566145,0.00019177,7]
[328638029,1717650639782,-52167.23234909,0.0002385,2]
[328638084,1717650644171,-500.0,0.00019178,2]
[328638086,1717650644180,-500.0,0.00019178,2]
[328638088,1717650644190,-500.0,0.00019178,2]
[328638091,1717650644199,-500.0,0.00019178,2]
[328638093,1717650644208,-500.0,0.00019178,2]
[328638095,1717650644218,-500.0,0.00019178,2]
[328638097,1717650644227,-500.0,0.00019178,2]
[328638104,1717650644329,-500.0,0.00019178,2]
[328638105,1717650644339,-500.0,0.00019178,2]
[328638106,1717650644349,-500.0,0.00019178,2]
[328638107,1717650644358,-500.0,0.00019178,2]
[328638108,1717650644368,-500.0,0.00019178,2]
[328638109,1717650644377,-81379.75146743,0.0002385,2]
[328638110,1717650644386,-618.85127834,0.00023887,2]
[328638111,1717650644396,-5851.53724505,0.000239,2]
[328638113,1717650644405,-160.0,0.00023914,4]
[328638115,1717650644416,-166.666666,0.00023969,2]
[328638116,1717650644425,-285.0,0.00024,2]
[328638118,1717650644434,-200.0,0.0002411,2]
[328638119,1717650644443,-160.0,0.00024115,5]
[328638121,1717650644453,-200.0,0.00024164,2]
[328638122,1717650644466,-292.6,0.0002429,7]
[328638125,1717650644475,-160.0,0.00024316,6]
[328638127,1717650644484,-620.00039569,0.00024356,2]
[328638129,1717650644494,-762.45939015,0.000244,2]
[328638131,1717650644505,-166.666666,0.00024482,2]
[328638133,1717650644515,-160.0,0.00024517,7]
[328638135,1717650644524,-500.0,0.00024658,2]
[328638137,1717650644533,-151.0,0.00024658,2]
[328638139,1717650644544,-151.0,0.00024658,2]
[328638140,1717650644554,-151.0,0.00024658,2]
[328638142,1717650644563,-164.744933,0.00024658,2]
[328638144,1717650644572,-160.0,0.00024719,8]
[328638146,1717650644582,-1632.58637617,0.00024869,7]
[328638148,1717650644591,-50000.0,0.0002487,5]
[328638150,1717650644601,-150.93962415,0.00024871,7]
[328638153,1717650644610,-292.6,0.00024895,7]
[328638155,1717650644620,-160.0,0.0002492,9]
[328638157,1717650644629,-307.265204,0.00024932,2]
[328638159,1717650644639,-500.0,0.00025,2]
[328638161,1717650644648,-1000.0,0.00025,6]
[328638163,1717650644658,-290.89344511,0.00025,2]
[328638165,1717650644668,-4485.699998,0.00025,2]
[328638167,1717650644677,-20140.45740308,0.00025,2]
[328638169,1717650644686,-160.0,0.00025,2]
[328638171,1717650644695,-401.85050272,0.00025,2]
[328638172,1717650644705,-1103.12375551,0.00025,2]
[328638174,1717650644714,-1000.0,0.00025,2]
[328638176,1717650644723,-964.20306253,0.00025,10]
[328638178,1717650644732,-310.0,0.00025,2]
[328638180,1717650644742,-16192.0,0.00025,2]
[328638182,1717650644751,-1516.73137671,0.00025042,2]
[328638184,1717650644761,-500.49108867,0.000251,2]
[328638186,1717650644771,-160.0,0.00025121,10]
[328638188,1717650644781,-160.0,0.00025322,11]
[328638190,1717650644790,-237.04613621,0.00025338,2]
[328638192,1717650644801,-921.01180741,0.00025338,2]
[328638194,1717650644810,-151.0,0.0002534,10]
[328638196,1717650644819,-79508.0,0.0002534,5]
[328638198,1717650644829,-1276.0,0.00025347,10]
[328638200,1717650644838,-200.0,0.00025373,2]
[328638202,1717650644847,-150.93962415,0.00025379,4]
[328638204,1717650644856,-270.0,0.000254,2]
[328638206,1717650644865,-44520.15294368,0.000254,2]
[328638208,1717650644875,-300.0,0.000254,2]
[328638210,1717650644884,-541.0,0.000254,2]
[328638212,1717650644894,-547.0,0.000254,2]
[328638214,1717650644904,-270.0,0.000254,2]
[328638216,1717650644913,-155.02051107,0.00025433,2]
[328638218,1717650644922,-154.99459906,0.00025433,2]
[328638220,1717650644931,-277.6410075,0.00025436,2]
[328638222,1717650644940,-155.55092947,0.00025438,2]
[328638224,1717650644950,-195638.0,0.0002544,6]
[328638226,1717650644959,-162358.0,0.0002547,5]
[328638228,1717650644968,-248.0,0.0002547,35]
[328638230,1717650644977,-248.0,0.0002548,35]
[328638232,1717650644986,-248.0,0.0002549,35]
[328638234,1717650644995,-937.40386635,0.00025498,7]
[328638236,1717650645004,-215.41652496,0.00025498,2]
[328638238,1717650645013,-306.07106985,0.00025498,2]
[328638240,1717650645023,-67736.7111635,0.00025499,2]
[328638242,1717650645032,-211716.91993853,0.000255,60]
[328638576,1717651832017,-407.1302962,0.0001699,2]
[328638578,1717651832027,-600.75944501,0.00017349,2]
[328638580,1717651832038,-635.79487883,0.00017349,2]
[328638584,1717651832077,-1833.83006258,0.00017349,2]
[328638587,1717651832086,-275.1647711,0.0001735,2]
[328638590,1717651832095,-202.13963443,0.00017501,2]
[328638592,1717651832104,-190.09701144,0.00017501,2]
[328638594,1717651832115,-214.77484133,0.00017601,2]
[328638596,1717651832124,-357.43769757,0.00017601,2]
[328638597,1717651832133,-710.56668851,0.00018,2]
[328638599,1717651832142,-10482.25493534,0.00018428,2]
[328638601,1717651832152,-24900.0,0.00018429,2]
[328638603,1717651832162,-524.3403133,0.00019077,2]
[328639017,1717651842046,-1674.79371648,0.00019077,2]
[328639184,1717651962193,285.73167299,9.999e-05,2]
[328639187,1717652373072,484.47283073,0.00017944,7]
[328639188,1717652433754,242.23641537,0.00017944,7]
[328639189,1717652466471,-6672.52426108,0.00012499,2]
[328639190,1717652466493,-6905.96535117,0.000125,2]
[328639199,1717653032208,-250.51955536,0.00015,2]
[328639201,1717653032219,-24900.0,0.00017618,2]
[328639202,1717653032229,-10482.25493534,0.00017898,2]
[328639203,1717653032238,-204.81154491,0.000179,2]
[328639204,1717653032247,-2762.77347703,0.00018,2]
[328639205,1717653032257,-4236.27632862,0.00018754,2]
[328639206,1717653032266,-710.56668851,0.00018799,2]
[328639207,1717653032276,-33890.68088762,0.000189,2]
[328639208,1717653032287,-1950.51241501,0.000189,2]
[328639209,1717653032296,-2035.14204136,0.000189,2]
[328639210,1717653032305,-377.99,0.00019168,3]
[328639211,1717653032315,-188.99,0.00019168,3]
[328639212,1717653032324,-949.32148506,0.00019177,2]
[328639213,1717653032334,-170.61070484,0.00019178,2]
[328639214,1717653032343,-500.0,0.00019178,2]
[328639215,1717653032352,-500.0,0.00019178,2]
[328639216,1717653032362,-500.0,0.00019178,2]
[328639217,1717653032371,-500.0,0.00019178,2]
[328639218,1717653032382,-500.0,0.00019178,2]
[328639219,1717653032392,-500.0,0.00019178,2]
[328639220,1717653032402,-500.0,0.00019178,2]
[328639221,1717653032412,-500.0,0.00019178,2]
[328639222,1717653032421,-500.0,0.00019178,2]
[328639223,1717653032431,-500.0,0.00019178,2]
[328639224,1717653032441,-500.0,0.00019178,2]
[328639225,1717653032450,-500.0,0.00019178,2]
[328639226,1717653032459,-200.0,0.00019178,2]
[328639227,1717653032469,-500.0,0.00019178,2]
[328639228,1717653032478,-500.0,0.00019178,2]
[328639229,1717653032486,-500.0,0.00019178,2]
[328639230,1717653032495,-500.0,0.00019178,2]
[328639231,1717653032505,-500.0,0.00019178,2]
[328639232,1717653032514,-500.0,0.00019178,2]
[328639233,1717653032524,-500.0,0.00019178,2]
[328639234,1717653032533,-500.0,0.00019178,2]
[328639235,1717653032543,-500.0,0.00019178,2]
[328639236,1717653032552,-500.0,0.00019178,2]
[328639237,1717653032561,-500.0,0.00019178,2]
[328639238,1717653032571,-500.0,0.00019178,2]
[328639239,1717653032580,-500.0,0.00019178,2]
[328639240,1717653032589,-500.0,0.00019178,2]
[328639241,1717653032600,-500.0,0.00019178,2]
[328639242,1717653032609,-500.0,0.00019178,2]
[328639243,1717653032619,-500.0,0.00019178,2]
[328639244,1717653032628,-500.0,0.00019178,2]
[328639245,1717653032638,-500.0,0.00019178,2]
[328639246,1717653032647,-500.0,0.00019178,2]
[328639247,1717653032660,-500.0,0.00019178,2]
[328639248,1717653032670,-500.0,0.00019178,2]
[328639249,1717653032680,-642.91024473,0.00019178,2]
[328639250,1717653032688,-500.0,0.00019178,2]
[328639251,1717653032697,-500.0,0.00019178,2]
[328639252,1717653032707,-500.0,0.00019178,2]
[328639253,1717653032716,-500.0,0.00019178,2]
[328639254,1717653032726,-500.0,0.00019178,2]
[328639255,1717653032735,-500.0,0.00019178,2]
[328639256,1717653032744,-500.0,0.00019178,2]
[328639257,1717653032758,-500.0,0.00019178,2]
[328639258,1717653032767,-191.30312708,0.00019178,2]
[328639292,1717653038406,-308.69687292,0.00019178,2]
[328639293,1717653038416,-500.0,0.00019178,2]
[328639294,1717653038428,-500.0,0.00019178,2]
[328639295,1717653038437,-182.77702858,0.00019178,2]